Cogmind - Beta 17 @@@ ROGUE MODE // 2026.08.03 @ 13:36:33 Player: LandRaider Result: Destroyed by Y9-JJT(g) with Salvaging Laser Performance ------------- Evolutions (0) 0 Regions Visited (3) 600 Robots Destroyed (8) 40 Value Destroyed (318) 318 Prototype IDs (9) 180 Alien Tech Used (0) 0 Bonus (910) 910 TOTAL SCORE: 2048 Bonus ------- Follower Combat Kills 162 Registered with UFD 300 Met Optimus in HQ 500 Friendly Fire -52 Cogmind --------- Core Integrity 0/250 Matter 290/300 Energy 41/140 System Corruption 6% Temperature Cool (6) Movement Walking (90) Location -7/Scraptown Parts ------- > --- POWER (1) -------- Light Deuterium Engine > --- PROPULSION (2) --- VSS Leg VSS Leg > --- UTILITY (2) ------ (None) > --- WEAPON (2) ------- Beamcaster > --- INVENTORY (5) ---- Improved Heat Sink Disposable Heat Sink Improved Terrain Scan Processor Transmission Jammer Gauss Rifle Peak State ------------ > --- POWER ------------ Micro Fission Core > --- PROPULSION ------- VSS Leg VSS Leg > --- UTILITY ---------- Small Storage Unit Makeshift Light Armor Plating > --- WEAPON ----------- Heavy Battle Rifle Hypervelocity Coil Gun > --- INVENTORY -------- Light Deuterium Engine Airjet Airjet Improved Heat Sink Disposable Heat Sink Improved Terrain Scan Processor Transmission Jammer [Rating: 29] Favorites ----------- Power Light Ion Engine Engine Light Ion Engine Power Core Micro Fission Core Propulsion Wheel Treads Advanced Treads Leg VSS Leg Wheel Wheel Hover Unit Airjet Utility Small Storage Unit Device Disposable Heat Sink Storage Small Storage Unit Protection Makeshift Light Armor Plating Weapon Assault Rifle Energy Gun Heavy Laser Ballistic Gun Assault Rifle Launcher Proton Missile Launcher Slashing Weapon Greatsword Build | -11 -10 -10 -7 ------- Run | Yrd Mat Sub Scr Slots Evolved . | . . . . Power . | . . . . Propulsion . | . . . . Utility . | . . . . Weapon . | . . . . Parts Attached 31 | 6 . 2 23 Power 5 | 1 . . 4 Engine 4 | 1 . . 3 Core 1 | . . . 1 Reactor . | . . . . Propulsion 14 | 2 . 1 11 Treads 2 | . . . 2 Leg 6 | . . . 6 Wheel 4 | 2 . 1 1 Hover 2 | . . . 2 Flight . | . . . . Utility 3 | 1 . 1 1 Device 1 | . . 1 . Storage 1 | 1 . . . Processor . | . . . . Hackware . | . . . . Protection 1 | . . . 1 Artifact . | . . . . Weapon 9 | 2 . . 7 Energy Gun 3 | . . . 3 Energy Cannon . | . . . . Ballistic Gun 4 | 2 . . 2 Ballistic Cannon . | . . . . Launcher 1 | . . . 1 Special Weapon . | . . . . Impact Weapon . | . . . . Slashing Weapon 1 | . . . 1 Piercing Weapon . | . . . . Special Melee Weapon . | . . . . Unidentified Prototypes . | . . . . Parts Lost 9 | . . . 9 Power 2 | . . . 2 Propulsion 3 | . . . 3 Utility 1 | . . . 1 Weapon 3 | . . . 3 Highest Loss Streak 6 | . . . 6 To Critical Strikes . | . . . . Average Backups 6 | 2 4 5 6 Power . | . 1 1 . Propulsion 1 | 1 2 2 1 Utility 2 | . . . 2 Weapon 1 | . 1 1 1 Tool/Special . | . . . . Unused Backups 11 | . . . 11 Power . | . . . . Propulsion 2 | . . . 2 Utility 6 | . . . 6 Weapon 3 | . . . 3 Tool/Special . | . . . . Average Slot Usage (%) 93 | . 85 90 94 Engine 12 | . 14 14 12 Core 1 | . . . 1 Treads 4 | . . . 5 Leg 4 | . . . 5 Wheel 18 | . 28 28 16 Device 10 | . . 5 11 Storage 13 | . 14 14 13 Protection 1 | . . . 2 Energy Gun 1 | . . . 1 Ballistic Gun 19 | . 28 28 18 Launcher 1 | . . . 1 Slashing Weapon 1 | . . . 1 Peak Build Rating 29 | 6 6 10 29 Average Rating 14 | 4 6 7 15 On Entrance 5 | . 6 6 10 Avg Prop Armor Cover (%) 5 | . . . 5 Naked Turns . | . . . . Heaviest Build 27 | 11 11 12 27 Greatest Support 44 | 20 20 30 44 Greatest Overweight (x) 6 | 3 . . 6 Average Overweight (x) . | . . . . Largest Inventory Capacity 8 | 8 8 8 8 Average Capacity 7 | 7 8 8 7 Most Carried 8 | 4 4 8 8 Average Carried 7 | 2 4 5 7 Final Capacity 8 | 8 8 8 5 Final Carried 8 | 4 4 8 5 Class Distribution -------------------- 83% | Mutant 16% | Scavenger-Mutant Dominant Class ---------------- Mutant | -10/Materials Mutant | -10/Subcaves Mutant | -7/Scraptown Resources | -11 -10 -10 -7 ----------- Run | Yrd Mat Sub Scr Matter Collected 646 | 230 30 28 358 Remotely . | . . . . Salvage Created 510 | . . 49 461 Parts 13 | . . 3 10 Haulers Intercepted . | . . . . Recyclers Shooed . | . . . . Parts Field Recycled . | . . . . Retrieved Matter . | . . . . Parts Self-Destructed 3 | . . 3 . Prevented . | . . . . Parts Restored . | . . . . Kills | -11 -10 -10 -7 ------- Run | Yrd Mat Sub Scr Combat Hostiles Destroyed 8 | . . 1 7 Guns 4 | . . 1 3 AOE 4 | . . . 4 Classes Destroyed 5 | . . 1 4 Subdweller 1 | . . 1 . Bolteater 1 | . . . 1 Explorer 2 | . . . 2 Ranger 2 | . . . 2 Scrapper 2 | . . . 2 Best Kill Streak 2 | . . 1 2 Combat Bots Only 2 | . . 1 2 Max Kills in Single Turn 2 | . . 1 2 Gunslinging . | . . . . Exploded 2 | . . . 2 Melee . | . . . . Uniques/NPCs Destroyed 1 | . . . 1 Optimus (-7/Scraptown) Combat | -11 -10 -10 -7 -------- Run | Yrd Mat Sub Scr Hostile Shots Fired 128 | . . 7 121 Missed 38 | . . 2 36 Hits 90 | . . 5 85 Melee 2 | . . . 2 Projectile 88 | . . 5 83 Critical Strikes 2 | . . . 2 Damage Taken 1415 | . . 124 1291 Core 256 | . . 43 213 Absorbed by Shields . | . . . . Core Remaining (%) 100 | 100 . . . Volleys Fired 27 | . . 2 25 Largest 2 | . . 2 2 Hottest 74 | . . 40 74 Shots Fired 37 | . . 4 33 Gun 25 | . . 4 21 Cannon . | . . . . Launcher 12 | . . . 12 Special . | . . . . Kinetic 24 | . . 4 20 Thermal 1 | . . . 1 Explosive . | . . . . Electromagnetic 12 | . . . 12 Robot Hit Streak 4 | . . 2 4 Robot Miss Streak 4 | . . 1 4 Penetration Max . | . . . . Secondary Targets . | . . . . Shots Hit Robots 16 | . . 2 14 Core Hits 13 | . . 2 11 Critical Kills . | . . . . Critical Parts Destroyed 2 | . . . 2 Critical Strikes 2 | . . . 2 Destroy 2 | . . . 2 Melee Attacks . | . . . . Impact . | . . . . Slashing . | . . . . Piercing . | . . . . Sneak Attacks . | . . . . Combat Hostiles . | . . . . Follow-up Attacks . | . . . . Damage Inflicted 683 | . . 34 649 Guns 172 | . . 34 138 Cannons . | . . . . Explosions 511 | . . . 511 Melee . | . . . . Ramming . | . . . . Kinetic 172 | . . 34 138 Thermal 167 | . . . 167 Explosive . | . . . . Electromagnetic 344 | . . . 344 Impact . | . . . . Slashing . | . . . . Piercing . | . . . . Highest Corruption 6 | . . . 6 Average Corruption 2 | . . . 2 Corruption Purged . | . . . . Corruption Blocked . | . . . . Effects 6 | . . . 6 Message Errors 1 | . . . 1 Matter Fused 1 | . . . 1 Heat Flow Errors 1 | . . . 1 Energy Discharges 2 | . . . 2 Data Loss (major) 1 | . . . 1 Overload Shots . | . . . . Overflow Damage 57 | . . . 57 Projectiles . | . . . . Explosions 57 | . . . 57 Melee . | . . . . Knockbacks . | . . . . Impact . | . . . . Kinetic . | . . . . Secondary . | . . . . Self-Inflicted Damage 10 | . . . 10 Shots 1 | . . . 1 Rammed . | . . . . Targets Rammed . | . . . . Kicked . | . . . . Crushed . | . . . . Highest Temperature 326 | . . . 326 Average Temperature 90 | . . . 90 Received Heat Transfer 457 | . . 30 427 Effects 1 | . . . 1 Short Circuit 1 | . . . 1 Siege Activations . | . . . . Martial Activations . | . . . . Shielding Activations . | . . . . Robots Disrupted . | . . . . Combat Hostiles . | . . . . Robots Corrupted . | . . . . Combat Hostiles . | . . . . Parts Fried 1 | . . . 1 Impact Corruptions . | . . . . Robots Melted . | . . . . Combat Hostiles . | . . . . Parts Melted 1 | . . . 1 Heat Transferred 161 | . . . 161 Parts Sabotaged . | . . . . Parts Stolen . | . . . . Parts Stripped . | . . . . Power Chain Reactions 7 | . . . 7 Alert | -11 -10 -10 -7 ------- Run | Yrd Mat Sub Scr Maximum Alert Level . | . . . . Low Security (%) 100 | 100 100 . . Level 1 . | . . . . Level 2 . | . . . . Level 3 . | . . . . Level 4 . | . . . . Level 5 . | . . . . High Security . | . . . . Max Security . | . . . . Peak Influence . | . . . . Initial . | . . . . Average . | . . . . Influence Increases . | . . . . Influence Decreases . | . . . . Squads Dispatched . | . . . . Investigation . | . . . . Extermination . | . . . . Reinforcement . | . . . . Assault . | . . . . Garrison . | . . . . Intercept . | . . . . Searches Triggered . | . . . . Construction Impeded . | . . . . Haulers Reinforced . | . . . . Active Scanning Responses . | . . . . Cargo Convoy Interrupts . | . . . . Stealth | -11 -10 -10 -7 --------- Run | Yrd Mat Sub Scr Distress Signals . | . . . . Communications Jammed . | . . . . Distress Signals . | . . . . Times Spotted 59 | . . 3 56 Peak Tracking Total 8 | . . 2 8 Tactical Retreats 3 | . . . 3 Traps | -11 -10 -10 -7 ------- Run | Yrd Mat Sub Scr Traps Triggered . | . . . . Indirectly . | . . . . Trap Hack Attempts . | . . . . Triggered . | . . . . Disarmed . | . . . . Reprogrammed . | . . . . Reused . | . . . . Traps Extracted . | . . . . Installed . | . . . . Triggered . | . . . . Machines | -11 -10 -10 -7 ---------- Run | Yrd Mat Sub Scr Machines Disabled 1 | . . . 1 Max in Single Turn 1 | . . . 1 Machines Repaired . | . . . . Machines Dismantled . | . . . . Machines Sabotaged . | . . . . Overloaded Fab Kills . | . . . . Hacking | -11 -10 -10 -7 --------- Run | Yrd Mat Sub Scr Machines Accessed 7 | . . . 7 Terminals . | . . . . Fabricators . | . . . . Repair Stations . | . . . . Recycling Units . | . . . . Scanalyzers . | . . . . Garrison Access . | . . . . Total Hacks 34 | . . . 34 Successful 34 | . . . 34 Failed . | . . . . Catastrophic . | . . . . Database Lockouts . | . . . . Manual . | . . . . Terminals . | . . . . Fabricators . | . . . . Repair Stations . | . . . . Recycling Units . | . . . . Scanalyzers . | . . . . Garrison Access . | . . . . Terminal Hacks 34 | . . . 34 Record 33 | . . . 33 Proto ID Catalog 1 | . . . 1 Fabricator Hacks . | . . . . Repair Station Hacks . | . . . . Recycling Unit Hacks . | . . . . Scanalyzer . | . . . . Garrison Access Hacks . | . . . . Unauthorized Hacks . | . . . . Terminals . | . . . . Fabricators . | . . . . Repair Stations . | . . . . Recycling Units . | . . . . Scanalyzers . | . . . . Garrison Access . | . . . . Data Cores Recovered . | . . . . Used . | . . . . Hacking Detections . | . . . . Full Trace Events . | . . . . Feedback Events . | . . . . Feedback Blocked . | . . . . Robot Schematics Acquired . | . . . . Robots Built . | . . . . Authchips . | . . . . Time . | . . . . Total Robot Build Rating . | . . . . Part Schematics Acquired . | . . . . Parts Built . | . . . . Authchips . | . . . . Time . | . . . . Total Part Build Rating . | . . . . Part Studies Acquired . | . . . . Parts Repaired . | . . . . Time . | . . . . Parts Recycled . | . . . . Recycled Matter . | . . . . Retrieved Matter . | . . . . Retrieved Components . | . . . . Parts Scanalyzed . | . . . . Part Schematics Acquired . | . . . . Parts Damaged . | . . . . Bothacking | -11 -10 -10 -7 ------------ Run | Yrd Mat Sub Scr Used RIF Installer . | . . . . Robots Hacked . | . . . . Non-combat . | . . . . Combat . | . . . . Robot Hacks Applied . | . . . . Relay Couplers Released . | . . . . Fabnet Peak Effective % . | . . . . Robots Rewired . | . . . . Allies Hacked . | . . . . Hacks Repelled . | . . . . Allies | -11 -10 -10 -7 -------- Run | Yrd Mat Sub Scr Total Allies 2 | . . . 2 Largest Group 1 | . . . 1 Highest-Rated Group 90 | . . . 90 Highest-Rated Ally 90 | . . . 90 Total Orders . | . . . . Ally Attacks 34 | . . . 34 Total Damage 896 | . . . 896 Kills 8 | . . . 8 Allies Corrupted . | . . . . Allies Melted 6 | . . . 6 Intel | -11 -10 -10 -7 ------- Run | Yrd Mat Sub Scr Active Infowar (turns) . | . . . . Robot Analysis Total . | . . . . Derelict Logs Recovered 4 | . . 3 1 Drone Launches . | . . . . Drone Recoveries . | . . . . Exploration | -11 -10 -10 -7 ------------- Run | Yrd Mat Sub Scr Turns Passed 2379 | 45 107 235 1992 Spaces Moved 2120 | 40 48 240 1792 Core 14 | 13 . . 1 Treads 241 | . . . 241 Legs 311 | . . . 311 Wheels 1544 | 27 48 240 1229 Hover 10 | . . . 10 Flight . | . . . . Fastest Speed 50 | 50 80 80 90 Average Speed 99 | 79 80 85 102 Slowest Speed 350 | 200 80 95 350 Overloaded Moves . | . . . . Propulsion Burnouts . | . . . . Robots Hopped . | . . . . Potential Cave-ins . | . . . . Cave-ins Triggered . | . . . . Exploration Rate (%) 32 | 3 12 24 90 Regions Visited 3 Branch Regions 2 Pre-discovered Areas 1 | . . 1 . Known Exits Taken . | . . . . Unknown Exits Taken 3 | 1 1 1 . Scrap Searched 4 | . . 1 3 Spaces Dug . | . . . . Terrain Destroyed 17 | . . . 17 Melee . | . . . . Projectile 2 | . . . 2 AOE 15 | . . . 15 Terrain Rammed . | . . . . Walls Destroyed . | . . . . Machines Disabled . | . . . . Actions | -11 -10 -10 -7 --------- Run | Yrd Mat Sub Scr Total 2342 | 49 116 264 1913 Wait 103 | . 69 18 16 Move 2117 | 39 47 239 1792 Hop . | . . . . Pick Up 31 | 4 . 3 24 Fast Attach 15 | 6 . 1 8 Attach 10 | . . . 10 Detach . | . . . . Swap 9 | . . 1 8 Drop 30 | . . . 30 Fire 27 | . . 2 25 Melee . | . . . . Ram . | . . . . Kick . | . . . . Crush . | . . . . Escape Stasis . | . . . . Rewire . | . . . . Trap . | . . . . Miscellaneous . | . . . . Route ------- -11/Scrapyard -10/Materials -10/Subcaves -7/Scraptown (discovered 2 exits: *Fac x2) History --------- Turn | Location | Event 7 | -11/Scrapyard | Discovered new exit (range 15) 46 | -11/Scrapyard | Entered Materials 47 | -10/Materials | Met a group of wandering Federalists 78 | -10/Materials | Discovered new exit (range 9) 153 | -10/Materials | Entered Subcaves 153 | -10/Subcaves | Accompanied by 3 allies 154 | -10/Subcaves | Continued accompanying wandering Federalists (5) 154 | -10/Subcaves | Approached by a straggling Scientist 237 | -10/Subcaves | Learned location of Storage (-7) 243 | -10/Subcaves | Lost 3 allies 252 | -10/Subcaves | Learned Materials stockpile data 322 | -10/Subcaves | Build established: Mutant 339 | -10/Subcaves | Learned Materials interactive machine intel 381 | -10/Subcaves | Wandering Federalist uncovered a shortcut to Scraptown 388 | -10/Subcaves | Entered Scraptown 436 | -7/Scraptown | Visited Cave Peace 478 | -7/Scraptown | Visited Awakened 508 | -7/Scraptown | Visited Red Mages 861 | -7/Scraptown | Visited Shadow of the Wyrm 893 | -7/Scraptown | Visited UFD Registry 893 | -7/Scraptown | Registered with UFD as "Autoback" 901 | -7/Scraptown | Visited Fellowship of the Rings 944 | -7/Scraptown | Visited TADAMA 986 | -7/Scraptown | Discovered new exit (range 3) 1028 | -7/Scraptown | Guru changed UFD alias to "Phaseslider" 1087 | -7/Scraptown | Scanned Subdweller tech in exchange for log data 1090 | -7/Scraptown | Learned Factory terminal intel 1178 | -7/Scraptown | Visited Scrap Suit Storage 1206 | -7/Scraptown | Visited Botcube Research 1215 | -7/Scraptown | Found Lrg. Botcube 1234 | -7/Scraptown | Visited Scrapoid Pod Storage 1250 | -7/Scraptown | Visited Junk Repository 1261 | -7/Scraptown | Visited Science Guys 1304 | -7/Scraptown | Visited Derelict Rescue Squad 1319 | -7/Scraptown | Found DRS Beacon 1328 | -7/Scraptown | Found DRS Beacon 1382 | -7/Scraptown | Visited Curators Association 1516 | -7/Scraptown | Visited Junk Repository 1544 | -7/Scraptown | Visited Supply Room 1683 | -7/Scraptown | Met Optimus 1683 | -7/Scraptown | Accepted into 0bPrime 1806 | -7/Scraptown | Civil war broke out across Scraptown 1834 | -7/Scraptown | Lrg. Botcube activated 1846 | -7/Scraptown | Lrg. Botcube completed mutation into legged form, armed with 1 melee weapon 1881 | -7/Scraptown | Identified exit to Factory 2036 | -7/Scraptown | Core integrity fell below 50% 2054 | -7/Scraptown | Core integrity fell below 20% 2077 | -7/Scraptown | Lost 17 allies 2088 | -7/Scraptown | Found Lrg. Botcube 2186 | -7/Scraptown | Lrg. Botcube activated 2233 | -7/Scraptown | Build established: Scavenger-Mutant 2257 | -7/Scraptown | Lost 4 allies 2350 | -7/Scraptown | Optimus destroyed in the chaos of civil war 2380 | -7/Scraptown | Destroyed by Y9-JJT(g) with Salvaging Laser Last Messages --------------- 02351_ 2W-X2Z(j) switches sides. 02353_ Hvy. Battle Rifle destroyed. 02355_ Dropped Airjet. 02355_ Airjet crushed and broken. 02355_ Lgt. Deuterium Engine destroyed. 02356_ Acquired VSS Leg. 02357_ Mak. Light Armor Plating destroyed. 02358_ Large Mutated Botcube cannibalizes Aluminum Leg to repair Corrupted VSS Leg. 02359_ Large Mutated Botcube cannibalizes Scrap Suit to repair Mak. Microdissipator Network. 02360_ Large Mutated Botcube cannibalizes Imp. Heat Sink to repair Mak. Microdissipator Network. 02362_ Acquired 10 matter. 02373_ Acquired Lgt. Deuterium Engine. 02374_ System corrupted: Energy discharge (-4). 02375_ Acquired 10 matter. 02377_ Y9-JJT(g): "0bPrime is tearing us apart, don't fall for it!" 02377_ Acquired Gauss Rifle. 02379_ Dropped Sml. Storage Unit. Map ----- +----------------------------------------------------+ | | | | | | | | | | | | | | | ?????????????????????????????????????????????????? | | ?????????????????????????????????????????????????? | | ?????????????????????????????????????????????????? | | ?????????????????????????????????????????????????? | | ?????????????????????????????????????????????????? | | ?????????????????????????????????????????????????? | | ?????????????????????????????????????????????????? | | ?????????????????????????????????????????????????? | | ?????????????????????????????????????????????????? | | ?????????????????????????????????????????????????? | | ?????????????????????????????????????????????????? | | ?????????????????????????????????????????????????? | | ?????????????????????????????????????????????????? | | ?????????????????????????####????????????????????? | | ?????????????????#""??####![###?????